bitfinex/quotes_ETHUSD_20260126
["timestamp","ask_amount","ask_price","bid_price","bid_amount"]
[1769410450413,4.87616376,2886.3,2886.1,0.001]
[1769410451116,4.84153205,2886.2,2885.7,0.001]
[1769410451293,11.33301772,2886.0,2885.7,0.001]
[1769410451495,4.84153205,2885.9,2885.3,0.001]
[1769410452232,4.84153205,2885.9,2884.2,16.64148567]
[1769410452233,4.84153205,2885.6,2884.2,16.64148567]
[1769410452682,4.84153205,2885.6,2884.3,0.03467045]
[1769410452883,4.84153205,2885.6,2884.2,16.64148567]
[1769410453322,0.86628676,2885.9,2884.2,16.64148567]
[1769410453323,4.84153205,2885.3,2884.2,10.15]
[1769410453531,4.84153205,2885.3,2883.9,6.49248567]
[1769410453688,5.97483382,2885.3,2884.0,0.03467406]
[1769410454815,5.97483382,2885.3,2883.9,7.35934923]
[1769410455321,5.97483382,2885.3,2883.9,6.49248567]
[1769410456288,4.84153205,2885.2,2883.9,6.49248567]
[1769410456910,1.13330177,2885.3,2884.0,0.03467406]
[1769410457108,4.84153205,2885.4,2883.9,6.49248567]
[1769410457315,4.84153205,2885.3,2883.9,6.49248567]
[1769410458018,4.84153205,2885.3,2883.9,7.35936486]
[1769410458332,4.84153205,2885.3,2884.2,6.49148567]
[1769410459702,4.84153205,2885.1,2884.4,0.001]
[1769410459903,5.32914843,2885.1,2884.4,0.001]
[1769410462245,0.03463171,2885.0,2884.4,0.001]
[1769410464338,5.36378014,2885.1,2884.4,0.001]
[1769410469542,4.84153205,2885.0,2884.4,0.001]
[1769410469706,4.84153205,2884.8,2884.4,0.001]
[1769410469910,4.84153205,2884.6,2884.4,0.001]
[1769410470447,0.03463171,2884.7,2884.4,0.001]
[1769410471544,4.87616376,2884.7,2884.4,0.001]
[1769410475928,4.84153205,2884.7,2883.9,0.001]
[1769410476121,4.87616376,2884.7,2883.9,0.001]
[1769410476651,4.84153205,2884.7,2883.9,0.001]
[1769410476854,4.84153205,2884.7,2884.0,6.49643087]
[1769410477059,4.84103205,2884.9,2884.0,6.49643087]
[1769410477254,4.87566376,2885.5,2884.3,6.49643087]
[1769410477436,4.84103205,2885.3,2884.3,6.49643087]
[1769410477851,4.84103205,2885.3,2884.6,6.49643087]
[1769410478029,4.84103205,2885.5,2884.9,6.49643087]
[1769410478228,4.87566376,2885.4,2884.6,6.49643087]
[1769410478631,4.84103205,2885.4,2884.6,6.49643087]
[1769410479556,4.84103205,2885.8,2884.6,6.49643087]
[1769410480066,4.84103205,2885.8,2884.8,6.49643087]
[1769410480250,4.87566376,2885.8,2884.8,6.49643087]
[1769410482966,4.84103205,2885.5,2884.8,6.49643087]
[1769410483166,4.87566376,2885.4,2884.8,6.49643087]
[1769410483544,4.87566376,2885.4,2884.5,6.49643087]
[1769410485769,4.87566376,2885.4,2884.2,6.49643087]
[1769410487075,0.86838826,2885.6,2884.2,6.49643087]
[1769410487076,0.002,2885.6,2885.2,6.49643087]
[1769410487851,4.84103205,2886.1,2885.5,6.49643087]
[1769410488663,4.84103205,2886.1,2885.2,6.49643087]
[1769410491904,4.84103205,2886.4,2885.5,6.49643087]
[1769410494403,5.70716674,2886.4,2884.8,7.36303621]
[1769410494697,5.70716674,2886.4,2884.8,6.49643087]
[1769410494895,4.84103205,2886.2,2884.8,6.49643087]
[1769410495194,4.84103205,2886.2,2885.7,0.001]
[1769410495368,4.84303205,2886.2,2885.7,0.001]
[1769410496384,5.70923505,2886.2,2884.7,0.03466564]
[1769410496564,4.84303205,2886.2,2884.6,1.62732754]
[1769410496763,4.84053205,2886.0,2884.6,1.62732754]
[1769410497575,4.84053205,2886.0,2884.7,0.86663946]
[1769410498600,4.84053205,2886.0,2884.6,0.90131698]
[1769410499098,0.002,2886.2,2885.2,7.87732151]
[1769410499404,0.002,2886.4,2885.3,0.46700125]
[1769410501094,0.002,2886.4,2885.4,0.86643099]
[1769410501290,0.002,2886.4,2885.5,0.03465603]
[1769410502097,0.002,2886.4,2885.4,0.03465723]
[1769410503509,0.002,2886.4,2885.4,0.90105824]
[1769410503886,4.84253205,2886.4,2885.4,0.90108282]
[1769410504084,4.84253205,2886.4,2885.4,0.03465723]
[1769410504301,4.84253205,2886.4,2885.4,0.726]
[1769410506901,4.84253205,2886.4,2885.2,0.03465964]
[1769410507413,4.84253205,2886.4,2885.6,0.001]
[1769410507814,4.84253205,2886.2,2885.6,0.001]
[1769410512588,0.002,2886.2,2885.6,0.001]
[1769410515706,4.84253205,2886.2,2885.7,6.48944976]
[1769410518016,0.002,2886.2,2885.7,6.48944976]
[1769410519794,0.002,2886.2,2885.7,6.48939137]
[1769410521021,0.002,2886.4,2885.8,0.03465243]
[1769410521220,0.002,2886.4,2885.7,6.48939137]
[1769410521926,4.84253205,2886.4,2885.7,6.48939137]
[1769410524594,0.86796325,2887.0,2885.7,6.48939137]
[1769410524595,0.002,2887.0,2886.3,6.48939137]
[1769410524799,4.84253205,2887.0,2886.3,6.48939137]
[1769410525996,4.84253205,2887.0,2886.0,6.48939137]
[1769410527096,4.84253205,2887.0,2886.3,6.48939137]
[1769410527830,4.84253205,2887.0,2886.0,6.48939137]
[1769410529599,4.84253205,2887.0,2886.1,0.86621924]
[1769410530022,4.84253205,2887.0,2886.0,7.35562442]
[1769410531246,4.84253205,2886.8,2886.0,7.35562442]
[1769410535033,4.84253205,2886.8,2886.3,6.48939137]
[1769410537512,4.84053205,2887.2,2886.6,6.48939137]
[1769410537905,4.84053205,2887.5,2886.9,6.48939137]
[1769410538737,0.002,2888.2,2887.2,17.04371774]
[1769410538901,4.12073405,2888.2,2887.7,6.48939137]
[1769410539235,4.12073405,2888.2,2887.4,6.48939137]
[1769410539622,4.12073405,2888.2,2887.4,7.35521328]
[1769410540004,4.12073405,2888.2,2887.4,6.48939137]
[1769410540721,4.12073405,2887.9,2887.1,0.86591412]
[1769410541258,4.12073405,2887.9,2887.0,0.86593312]
[1769410541620,4.12073405,2887.9,2886.9,0.8659808]
[1769410542556,4.12073405,2887.9,2886.9,1.5909808]
[1769410542953,4.12073405,2887.9,2887.0,4.064935]
[1769410543159,0.002,2887.9,2887.4,6.48939137]
[1769410543724,0.002,2887.7,2887.4,6.48939137]
[1769410543949,0.002,2887.9,2887.4,6.48939137]
[1769410545819,0.002,2887.9,2887.4,7.35521588]
[1769410546230,0.002,2887.9,2887.4,6.48939137]
[1769410546749,0.002,2887.9,2887.2,0.8658703]
[1769410548032,4.12073405,2887.9,2887.1,6.48939137]
[1769410548232,4.12073405,2887.9,2887.1,0.725]
[1769410548556,4.53280746,2887.9,2887.1,8.08030933]
[1769410548777,4.12073405,2887.9,2887.1,7.21439137]
[1769410549066,4.12073405,2887.9,2887.1,6.48939137]
[1769410549880,4.12073405,2887.9,2887.0,4.505]
[1769410550261,4.12073405,2887.9,2887.0,3.78]
[1769410552749,0.002,2887.9,2887.4,6.48939137]
[1769410553088,0.002,2887.9,2887.1,7.35531219]
[1769410554076,0.002,2887.9,2887.2,4.09957063]
[1769410554644,0.002,2887.9,2887.3,0.86586083]
[1769410555347,3.94290595,2888.1,2887.4,6.48939137]
[1769410555650,0.002,2887.7,2887.4,6.48939137]
[1769410555850,0.002,2888.9,2887.4,10.55432637]
[1769410556050,4.11873405,2888.8,2887.5,0.03463203]
[1769410556264,4.11873405,2888.8,2887.6,0.725]
[1769410557268,4.11873405,2888.8,2887.6,1.59076683]
[1769410557476,6.49139137,2888.9,2887.6,0.725]
[1769410557477,4.11873405,2888.6,2887.6,0.725]
[1769410557860,4.11873405,2888.6,2887.3,6.48939137]
[1769410558055,4.11873405,2888.6,2887.4,1.59081154]
[1769410558377,4.11873405,2888.6,2887.4,0.725]
[1769410558577,4.11873405,2888.6,2887.4,1.59082416]
[1769410558776,4.11873405,2888.4,2887.5,0.8657976]
[1769410559905,4.11873405,2888.8,2887.7,10.55432637]
[1769410560457,0.002,2888.9,2887.8,4.064935]
[1769410560961,4.11873405,2888.8,2887.6,0.86575317]
[1769410561148,6.49139137,2888.9,2887.6,0.86575252]
[1769410561149,4.11873405,2888.5,2887.6,0.86575252]
[1769410561353,4.11873405,2888.5,2887.5,3.46319269]
[1769410561554,4.11873405,2888.5,2887.6,0.86575367]
[1769410563096,0.002,2888.9,2888.2,6.48939137]
[1769410565675,0.002,2888.9,2887.9,4.93059649]
[1769410565875,4.61131833,2888.9,2887.2,10.72000283]
[1769410566055,4.61131833,2888.9,2887.5,0.86578476]
[1769410566255,4.61131833,2888.9,2887.5,0.90041679]
[1769410566474,4.61131833,2888.9,2887.6,0.8657702]
[1769410566886,4.61131833,2888.9,2887.8,0.86570046]
[1769410567077,4.61131833,2888.9,2887.7,5.3275561]
[1769410567585,4.61131833,2888.9,2887.6,0.86575209]
[1769410567980,4.60931833,2888.6,2887.6,0.86576595]
[1769410568182,4.60931833,2888.6,2887.5,0.90041156]
[1769410568384,4.60931833,2888.6,2887.6,0.86576116]
[1769410571094,0.002,2888.7,2887.8,0.86571092]
[1769410572688,0.002,2888.7,2887.9,4.42720666]
[1769410572894,0.002,2888.7,2888.0,0.03462603]
[1769410573981,4.27786025,2888.7,2887.8,0.9003181]
[1769410574486,0.001,2888.9,2888.0,5.33052159]
[1769410574681,0.001,2888.9,2888.2,4.46487795]
[1769410574903,2.9e-06,2889.1,2888.2,4.46487795]
[1769410575798,2.9e-06,2889.1,2888.1,0.90022899]
[1769410575986,2.9e-06,2889.1,2888.1,0.86560416]
[1769410576388,4.27586315,2889.1,2888.1,0.86560416]
[1769410576701,4.27586315,2889.1,2888.1,3.78]
[1769410576870,4.70344947,2889.1,2888.1,3.78]
[1769410577406,4.27586315,2889.1,2888.2,0.90021076]
[1769410578586,4.27586315,2889.1,2888.2,0.03462364]
[1769410578797,4.27586315,2889.1,2888.1,4.68023891]
[1769410579106,4.27586315,2889.1,2887.6,3.78]
[1769410579409,4.27586315,2889.1,2887.8,0.86569137]
[1769410579607,4.27586025,2888.9,2887.8,0.86569137]
[1769410579928,4.27586025,2888.9,2887.9,0.001]
[1769410580217,4.27786025,2888.9,2887.9,0.001]
[1769410581483,4.27786025,2888.9,2887.9,0.03562723]
[1769410582018,4.27786025,2888.9,2887.9,0.90128495]
[1769410584016,4.27786025,2888.9,2888.0,3.78]
[1769410585009,4.27786025,2888.9,2887.9,0.001]
[1769410585382,4.27786025,2888.9,2887.9,5.36616602]
[1769410585578,4.27786025,2888.9,2888.1,6.47831639]
[1769410587588,4.27786025,2888.9,2887.9,0.001]
[1769410588912,4.27786025,2888.9,2887.9,0.03562723]
[1769410589096,4.27786025,2888.9,2887.9,0.001]
[1769410589990,5.14325498,2888.9,2887.3,1.59083469]
[1769410590189,5.14325498,2888.9,2887.3,1.62547506]
[1769410590722,5.20595309,2888.9,2887.3,0.725]
[1769410590887,5.20595309,2888.9,2887.3,1.59085629]
[1769410591289,5.20595309,2888.9,2887.3,1.59085376]
[1769410591512,5.20595309,2888.9,2887.4,4.64582834]
[1769410591721,5.20595309,2888.9,2888.1,0.001]
[1769410591887,4.27586025,2888.7,2888.1,0.001]
[1769410592449,4.27586025,2888.7,2887.3,4.2230618]
[1769410592450,4.27586025,2888.2,2887.2,0.001]
[1769410593223,4.27586025,2888.2,2887.2,0.03563563]
[1769410593743,4.27586025,2888.2,2887.2,0.90152328]
[1769410593931,4.53249998,2888.5,2887.4,5.60498544]
[1769410594225,4.53449998,2888.9,2887.4,5.63961867]
[1769410594602,5.39988217,2888.9,2887.4,5.63961867]
[1769410595800,4.53449998,2888.9,2887.4,5.63961867]
[1769410599337,0.002,2888.9,2887.7,4.73916824]
[1769410599635,0.002,2888.9,2887.9,4.73916824]
[1769410599944,0.002,2888.9,2888.0,0.03462603]
[1769410600529,4.53449998,2888.9,2888.0,0.03462603]
[1769410600828,4.53449998,2888.9,2887.9,0.03462723]
[1769410601330,0.002,2888.9,2888.0,5.60481796]
[1769410601529,0.002,2888.9,2888.1,0.03462483]
[1769410601727,4.53449998,2888.9,2887.9,0.90028803]
[1769410602739,0.001,2888.9,2888.1,4.73916824]
[1769410603030,0.001,2888.9,2888.3,4.73916824]
[1769410603231,4.52850771,2889.4,2888.4,4.73916824]
[1769410603800,4.53249998,2890.0,2888.4,4.73916824]
[1769410604227,4.35667187,2889.7,2888.4,4.73916824]
[1769410604429,4.18084376,2889.7,2888.4,4.73916824]
[1769410604629,4.59892814,2889.7,2888.4,5.60469869]
[1769410604829,4.59892814,2889.7,2888.4,5.63931993]
[1769410605550,4.59892814,2889.7,2888.4,4.73916824]
[1769410606048,4.59892814,2889.7,2888.4,5.60469342]
[1769410606722,3.46023103,2890.0,2888.4,5.60469342]
[1769410606723,4.53249998,2890.0,2888.6,4.73916824]
[1769410608257,4.53249998,2890.0,2888.7,4.77378588]
[1769410608941,4.53249998,2890.0,2888.8,0.86541124]
[1769410609522,5.39755654,2890.0,2888.9,6.4747028]
[1769410609723,4.53249998,2890.0,2888.9,6.4747028]
[1769410609945,5.07245492,2890.0,2888.9,6.4747028]
[1769410610451,0.86704946,2890.1,2889.2,6.4747028]
[1769410610452,4.53449998,2890.1,2889.2,6.4747028]
[1769410615764,4.53449998,2890.1,2889.5,6.4747028]
[1769410615765,0.002,2890.1,2889.5,6.4747028]
[1769410615938,4.53449998,2890.1,2889.2,6.4747028]
[1769410616763,0.002,2889.9,2889.4,0.001]
[1769410620355,4.53449998,2889.9,2889.4,0.001]
[1769410621174,4.53449998,2889.9,2888.9,3.78]
[1769410621568,5.39958932,2889.9,2888.6,6.4747028]
[1769410621764,5.39958932,2889.9,2888.4,6.4747028]
[1769410621968,4.53249998,2889.7,2888.4,6.4747028]
[1769410623068,4.53249998,2889.7,2889.0,6.4747028]
[1769410626492,0.002,2889.9,2889.3,6.4747028]
[1769410628094,4.54261181,2889.9,2889.3,6.4747028]
[1769410628891,4.54261181,2889.9,2889.4,0.001]
[1769410629665,4.99707299,2889.9,2889.0,6.4747028]
[1769410630061,0.002,2889.9,2889.3,6.4747028]
[1769410630286,4.54261181,2889.9,2889.3,6.4747028]
[1769410631197,4.54261181,2889.9,2889.0,7.34004676]
[1769410631569,4.54261181,2889.9,2889.0,6.4747028]
[1769410634294,1.59202282,2890.1,2889.0,6.4747028]
[1769410634295,0.002,2890.1,2889.6,6.4747028]
[1769410634669,0.002,2890.1,2889.3,6.4747028]
[1769410634865,4.54261181,2890.1,2889.3,6.4747028]
[1769410636806,0.002,2890.3,2889.6,6.4747028]
[1769410637014,4.54261181,2890.3,2889.6,6.4747028]
[1769410637706,0.002,2890.4,2889.9,6.4747028]
[1769410639486,4.64848712,2890.9,2890.2,6.4747028]
[1769410640983,0.002,2890.4,2890.2,6.4747028]
[1769410641188,4.64848712,2890.9,2890.2,6.4747028]
[1769410641511,0.002,2891.1,2890.5,6.4747028]
[1769410641821,0.002,2891.1,2890.6,6.46724199]
[1769410642188,4.64648712,2891.0,2889.3,4.57888564]
[1769410642390,4.64648712,2891.0,2889.9,0.86505777]
[1769410644619,4.64648712,2891.0,2889.8,6.46724199]
[1769410644620,4.64648712,2891.0,2889.8,11.91121985]
[1769410644816,0.002,2891.1,2889.9,4.81245594]
[1769410645016,0.002,2891.1,2890.2,4.57888564]
[1769410648621,0.002,2891.1,2890.1,0.89961749]
[1769410648833,0.002,2891.1,2890.2,0.86498217]
[1769410649014,0.002,2891.3,2890.3,0.03459848]
[1769410651140,0.002,2891.3,2890.3,0.89954472]
[1769410653135,0.002,2891.3,2890.3,15.39954472]
[1769410653339,0.002,2891.3,2890.3,15.36494624]
[1769410653751,0.002,2891.1,2890.3,15.36494624]
[1769410653916,0.002,2891.1,2890.4,0.03459728]
[1769410655464,0.002,2891.1,2890.3,0.03459848]
[1769410656466,0.002,2891.1,2890.4,0.86492379]
[1769410656637,0.40146849,2891.5,2890.5,0.03459609]
[1769410657831,0.40146849,2891.5,2890.6,0.86487234]
[1769410658037,0.40146849,2891.5,2890.7,0.03459369]
[1769410659750,0.40146849,2891.5,2890.7,0.89943312]
[1769410659950,0.40146849,2891.5,2890.7,0.86483943]
[1769410660966,0.40146849,2891.5,2890.8,0.0345925]
[1769410661479,0.40146849,2891.5,2890.7,0.89943312]
[1769410662365,0.40146849,2891.5,2890.7,0.86483943]
[1769410662869,0.40146849,2891.5,2890.6,0.86485971]
[1769410663765,0.40146849,2891.5,2890.5,0.86488147]
[1769410663966,0.40146849,2891.5,2890.4,0.89950786]
[1769410664143,0.40146849,2891.5,2890.6,0.8648694]
[1769410664572,0.40146849,2891.5,2890.4,0.89951915]
[1769410664738,0.40146849,2891.5,2890.2,0.03459968]
[1769410664941,0.40146849,2891.5,2890.3,0.2335703]
[1769410665241,0.40146849,2891.5,2890.4,0.03459728]
[1769410666171,0.40146849,2891.5,2890.6,0.001]
[1769410667548,0.40146849,2891.5,2890.6,6.46786124]
[1769410668671,0.02818357,2891.5,2890.7,0.03459369]
[1769410668891,0.02818357,2891.5,2890.9,6.46686124]
[1769410668892,0.00088074,2891.5,2890.9,6.46686124]
[1769410669081,0.002,2891.8,2890.9,6.46686124]
[1769410669249,3.45761513,2892.2,2890.9,6.46686124]
[1769410669869,0.86439388,2892.2,2890.9,6.46686124]
[1769410670072,0.50676171,2892.1,2890.9,6.46686124]
[1769410670283,0.86439388,2892.2,2890.9,6.46686124]
[1769410673154,0.86439388,2892.2,2890.9,7.33164133]
[1769410674391,0.88611415,2892.3,2890.9,7.33164133]
[1769410674793,0.88611907,2892.3,2891.2,6.46686124]
[1769410677287,0.88611907,2892.3,2890.9,6.46686124]
[1769410677485,0.50705439,2892.2,2890.9,6.50145254]
[1769410677700,0.50705439,2892.2,2890.6,3.46046073]
[1769410677701,0.50705439,2892.2,2891.1,0.001]
[1769410678090,0.002,2892.1,2891.1,0.001]
[1769410687882,0.726,2892.1,2891.1,0.001]
[1769410689810,0.002,2892.0,2891.1,0.001]
[1769410690016,1.07640132,2892.0,2891.1,0.001]
[1769410690218,0.21194766,2892.0,2891.1,0.001]
[1769410693617,0.21194766,2892.0,2891.1,0.03558891]
[1769410694131,0.002,2892.0,2891.1,0.03558891]
[1769410694630,0.002,2892.0,2891.1,0.001]
[1769410695557,0.002,2892.0,2891.2,6.46686124]
[1769410699014,0.002,2892.0,2891.1,0.001]
[1769410701845,0.002,2892.0,2891.3,0.001]
[1769410706017,0.64918063,2892.0,2891.3,0.001]
[1769410706220,1.51364011,2892.0,2891.3,0.001]
[1769410708947,0.002,2892.0,2891.3,0.001]
[1769410709821,0.86646246,2892.0,2891.3,0.001]
[1769410710021,0.002,2892.0,2891.3,0.001]
[1769410713839,0.002,2892.0,2891.5,0.001]
[1769410718862,0.002,2892.0,2891.3,0.001]
[1769410719064,0.002,2892.0,2891.1,0.001]
[1769410719065,6.4678063,2892.0,2891.1,0.001]
[1769410719270,0.80582306,2891.9,2891.1,1.1680078]
[1769410720866,0.002,2892.0,2891.1,1.1680078]
[1769410725481,0.002,2892.0,2891.4,1.1670078]
[1769410734577,0.726,2892.0,2891.4,1.1670078]
[1769410737171,0.002,2891.8,2891.4,1.1670078]
[1769410746120,0.002,2891.8,2891.3,0.001]
[1769410749914,0.002,2891.8,2891.3,1.1680078]
[1769410760250,0.002,2892.0,2891.4,1.1660078]
[1769410760415,0.002,2892.0,2891.5,1.1650078]
[1769410767532,0.002,2892.0,2891.5,1.05054586]
[1769410770034,0.86645366,2892.0,2891.3,1.10877683]
[1769410772308,0.002,2892.0,2891.5,0.001]
[1769410772645,0.002,2891.8,2891.5,0.001]
[1769410777869,0.002,2892.0,2891.6,1.10677683]
[1769410785229,0.002,2892.0,2891.8,0.001]
[1769410785557,0.002,2892.0,2891.8,1.10777683]
[1769410790843,0.002,2892.0,2891.5,0.001]
[1769410797092,0.002,2892.0,2891.7,0.001]
[1769410797390,0.002,2891.8,2891.7,0.001]
[1769410799791,0.002,2892.0,2891.8,1.10577683]
[1769410799974,0.724,2891.9,2891.8,1.10577683]
[1769410800491,0.724,2891.9,2891.7,1.10677683]
[1769410801388,0.002,2892.2,2891.8,1.10377683]
[1769410801557,0.002,2892.5,2892.0,1.09141293]
[1769410801875,0.92703222,2892.4,2891.7,0.001]
[1769410802063,0.06269811,2892.2,2891.7,0.001]
[1769410802259,6.52763003,2892.0,2891.5,0.001]
[1769410802459,0.724,2891.9,2891.5,0.001]
[1769410802861,0.86447486,2892.0,2891.5,1.09241293]
[1769410803056,0.724,2891.9,2891.5,1.09241293]
[1769410803290,0.86447486,2892.0,2891.5,1.09241293]
[1769410803291,0.724,2892.0,2891.5,1.09241293]
[1769410806199,1.58845612,2892.0,2891.5,1.09241293]
[1769410806393,1.22860454,2892.0,2891.5,1.09241293]
[1769410806576,0.86440417,2892.2,2891.5,1.09241293]
[1769410806769,0.86438235,2892.3,2891.5,1.09241293]
[1769410807092,1.58835579,2892.4,2891.5,1.09241293]
[1769410807302,0.86435579,2892.4,2891.5,1.09241293]
[1769410807676,0.002,2892.5,2891.7,1.09141293]
[1769410809595,6.46493192,2892.3,2891.7,1.09141293]
[1769410809770,0.86439388,2892.2,2891.7,0.001]
[1769410810791,0.86439388,2892.2,2891.7,1.09241293]
[1769410812067,0.92709199,2892.2,2891.7,0.001]
[1769410812262,6.52763003,2892.0,2891.5,0.001]
[1769410812867,0.06269811,2891.8,2891.3,0.001]
[1769410813268,6.52763003,2892.0,2891.3,0.001]
[1769410813496,0.06269811,2891.8,2891.3,0.001]
[1769410813680,0.72173092,2891.8,2891.3,0.001]
[1769410814085,0.86454334,2891.7,2891.3,0.001]
[1769410814596,0.86454334,2891.7,2890.6,1.09241293]
[1769410814597,0.06269811,2891.6,2890.6,1.09241293]
[1769410814896,0.724,2891.5,2890.6,1.09241293]
[1769410815443,0.86454334,2891.7,2890.6,1.09241293]
[1769410815698,0.724,2891.5,2890.6,1.09241293]
[1769410816880,1.5886093,2891.5,2890.6,1.09241293]
[1769410817312,0.50470118,2891.4,2890.6,1.09241293]
[1769410818667,1.36935143,2891.4,2890.6,1.09241293]
[1769410819995,1.52356585,2891.8,2890.9,0.98929132]
[1769410820212,2.49485103,2891.8,2890.9,0.98929132]
[1769410820410,6.46493192,2891.7,2890.6,0.99029132]
[1769410820614,0.89597829,2891.6,2890.6,0.99029132]
[1769410820812,0.86460314,2891.5,2890.6,0.99029132]
[1769410821116,0.86460314,2891.5,2890.6,0.001]
[1769410821117,0.06269811,2891.4,2890.6,0.001]
[1769410821711,6.52763003,2891.4,2890.6,0.001]
[1769410822019,6.52763003,2891.4,2890.8,0.001]
[1769410822204,0.83008202,2891.3,2890.8,0.001]
[1769410822400,1.76055739,2891.6,2890.8,0.99029132]
[1769410822610,0.86456128,2891.7,2890.8,0.99029132]
[1769410824798,2.24756166,2891.8,2890.8,0.99029132]
[1769410825627,8.71632692,2891.8,2890.8,0.99029132]
[1769410826626,0.86439388,2892.2,2891.2,0.98929132]
[1769410827322,0.866364,2892.3,2891.2,0.98929132]
[1769410829026,0.002,2892.3,2891.2,0.98929132]
[1769410830628,0.06269811,2892.1,2891.2,0.98929132]
[1769410830794,6.46876526,2892.0,2891.2,0.98929132]
[1769410831428,7.33324661,2892.0,2891.2,0.98929132]
[1769410833429,7.39594472,2892.0,2891.2,0.98929132]
[1769410833633,7.39594472,2892.0,2890.8,0.001]
[1769410833634,0.06269811,2891.4,2891.0,0.001]
[1769410833803,0.78669811,2891.4,2891.0,0.001]
[1769410834531,0.06269811,2891.2,2890.6,0.001]
[1769410834720,0.06269811,2891.2,2890.7,0.90814843]
[1769410834721,0.06269811,2891.0,2890.7,0.90814843]
[1769410834926,0.86448135,2892.0,2890.7,0.90814843]
[1769410834927,0.724,2891.7,2890.7,0.90814843]
[1769410835106,0.92717946,2892.0,2890.7,0.90814843]
[1769410835306,0.92717946,2892.0,2890.9,0.90814843]
[1769410835307,0.724,2891.9,2890.9,0.90814843]
[1769410835613,2.8215336,2891.9,2890.9,0.90814843]
[1769410835812,0.78669811,2891.8,2890.9,0.90814843]
[1769410837733,0.86454334,2891.7,2890.9,0.90814843]
[1769410838528,8.18726124,2892.1,2891.1,0.90814843]
[1769410838529,0.002,2892.1,2891.1,0.90814843]
[1769410840647,0.002,2892.1,2891.1,1.6458398]
[1769410840933,0.002,2892.1,2890.8,0.90814843]
[1769410841138,0.06269811,2892.0,2890.8,0.90814843]
[1769410841307,1.02871923,2892.0,2890.8,0.90814843]
[1769410841905,0.06269811,2892.0,2890.8,0.90814843]
[1769410842111,0.002,2892.1,2891.4,0.90814843]
[1769410842311,0.002,2892.1,2891.5,0.90814843]
[1769410846044,0.002,2891.8,2891.5,0.90814843]
[1769410848658,0.002,2891.8,2891.4,0.73769137]
[1769410849018,0.002,2891.8,2891.0,0.001]
[1769410849582,0.002,2891.8,2891.1,0.90814843]
[1769410849766,0.002,2891.8,2891.1,0.94273734]
[1769410850260,0.002,2891.8,2891.1,0.90814843]
[1769410852379,0.002,2891.8,2891.2,0.90814843]
[1769410852573,0.002,2891.8,2891.3,0.73769137]
[1769410852900,0.002,2891.8,2891.2,0.90814843]
[1769410854081,0.002,2892.0,2891.4,7.37691369]
[1769410856556,0.002,2892.0,2891.4,0.90814843]
[1769410857994,0.002,2892.0,2891.4,0.90914843]
[1769410858187,0.002,2891.8,2891.4,0.001]
[1769410861388,1.03071923,2891.8,2891.0,0.001]
[1769410861688,1.83062426,2891.5,2891.0,0.001]
[1769410861893,0.96602112,2891.4,2891.0,0.001]
[1769410862472,0.96602112,2891.4,2890.6,0.001]
[1769410862674,0.96602112,2891.4,2890.1,0.001]
[1769410862675,0.96602112,2891.1,2890.1,0.001]
[1769410863586,0.96602112,2891.0,2890.1,0.001]
[1769410864094,0.96602112,2890.9,2890.1,0.001]
[1769410864261,0.18307983,2890.8,2890.1,0.001]
[1769410865268,1.14524809,2890.8,2890.1,0.001]
[1769410866095,0.17547192,2891.7,2890.2,0.92100156]
[1769410866300,0.17547192,2891.7,2890.4,0.92100156]
[1769410866301,0.86457324,2891.6,2890.4,0.92100156]
[1769410868095,0.86651345,2891.8,2890.4,0.92100156]
[1769410868470,1.02486637,2891.7,2890.4,0.92100156]
[1769410869083,0.96216826,2891.4,2890.1,0.92200156]
[1769410869598,0.86651345,2891.8,2890.2,0.86497313]
[1769410869782,0.86651345,2891.8,2890.5,0.92100156]
[1769410869983,1.82868171,2891.8,2890.5,0.92100156]
[1769410870182,1.82868171,2891.8,2890.6,0.92200156]
[1769410870585,0.96416826,2891.8,2890.6,0.92200156]
[1769410871906,1.8913866,2891.8,2890.6,0.92200156]
[1769410872068,0.18913866,2891.7,2890.6,0.92200156]
[1769410872274,1.02486637,2891.6,2890.6,0.001]
[1769410872902,1.02486637,2891.4,2890.6,0.001]
[1769410873572,0.96216826,2891.1,2890.1,0.001]
[1769410874109,0.18913866,2891.7,2890.5,0.92100156]
[1769410874406,0.18913866,2891.7,2890.6,1.09959421]
[1769410875806,1.05368391,2891.7,2890.6,1.09959421]
[1769410876186,0.18913866,2891.7,2890.6,1.09959421]
[1769410876578,1.02486637,2891.6,2890.3,0.92100156]
[1769410876778,1.02486637,2891.6,2890.4,0.03459728]
[1769410877284,0.002,2891.8,2890.7,0.98847424]
[1769410877483,0.002,2891.8,2890.7,1.02306793]
[1769410877786,0.002,2891.8,2890.9,0.98847424]
[1769410879077,0.002,2891.8,2891.1,0.98847424]
[1769410881007,0.002,2892.0,2891.3,0.98847424]
[1769410881178,0.002,2892.1,2891.4,0.98847424]
[1769410881378,0.002,2892.1,2891.2,0.86469286]
[1769410881379,0.002,2892.3,2891.5,0.98847424]
[1769410881586,0.002,2892.5,2891.6,0.98847424]
[1769410882904,0.00100193,2892.5,2891.6,0.98847424]
[1769410883088,0.00100193,2892.5,2891.8,0.98847424]
[1769410883299,0.005,2893.2,2891.9,1.173776]
[1769410883475,1.17493873,2893.3,2892.1,0.98847424]
[1769410883678,1.17493873,2893.3,2892.0,7.8523451]
[1769410883679,1.17493873,2893.3,2892.3,0.98847424]
[1769410885213,1.17493873,2893.3,2891.9,0.18530176]
[1769410885214,1.17493873,2893.3,2892.5,0.98847424]
[1769410887117,3.02852322,2893.3,2892.0,0.98847424]
[1769410887301,1.29265643,2893.2,2892.0,2.0567514]
[1769410888027,1.29265643,2893.2,2892.0,1.19230005]
[1769410888781,1.29265643,2893.2,2892.0,2.05675272]
[1769410889181,1.29265643,2893.2,2892.0,1.19230005]
[1769410889419,0.24675952,2893.1,2892.1,0.22766444]
[1769410890116,0.24675952,2893.1,2892.0,0.98847424]
[1769410891219,1.05220222,2893.0,2891.6,0.03458292]
[1769410891526,0.06269811,2892.8,2891.3,1.85311691]
[1769410891705,0.98950411,2892.7,2891.3,1.88770342]
[1769410891906,0.98950411,2892.7,2891.4,0.18877034]
[1769410892094,1.05220222,2892.6,2891.4,0.18877034]
[1769410892299,0.98950411,2892.6,2891.4,0.18877034]
[1769410892615,0.98950411,2892.6,2891.2,0.86469027]